bitfinex/quotes_ETHUSD_20260203
["timestamp","ask_amount","ask_price","bid_price","bid_amount"]
[1770142830394,5.0815703,2162.3,2160.4,0.001]
[1770142830557,5.0815703,2162.3,2159.7,0.00694669]
[1770142830754,5.0815703,2162.3,2159.6,11.66163618]
[1770142830755,0.3359703,2162.2,2159.6,11.66163618]
[1770142831359,12.14950517,2162.2,2159.1,1.15784579]
[1770142831558,12.14950517,2162.2,2158.6,12.29370848]
[1770142831559,5.0815703,2160.6,2158.4,0.1220033]
[1770142831803,0.2335703,2160.4,2158.4,0.1220033]
[1770142831987,5.66164727,2160.4,2158.4,0.1220033]
[1770142832168,0.2335703,2160.2,2158.4,0.1220033]
[1770142832490,0.2335703,2160.2,2158.3,1.15826747]
[1770142832657,0.2335703,2160.2,2158.4,1.15824338]
[1770142832856,0.2335703,2160.5,2158.4,1.15823986]
[1770142833115,0.92628389,2160.5,2157.8,12.28676179]
[1770142833316,4.848,2160.3,2157.9,0.00694669]
[1770142833470,0.54579403,2160.2,2158.4,1.1582641]
[1770142833674,0.2335703,2160.5,2158.3,1.15831285]
[1770142833998,0.2335703,2160.5,2158.4,1.15826044]
[1770142834169,0.2335703,2160.5,2158.2,1.15834442]
[1770142834374,5.0815703,2160.5,2158.1,0.00694669]
[1770142834589,5.0815703,2160.5,2158.0,12.28676179]
[1770142834590,0.2335703,2160.2,2158.0,12.28676179]
[1770142834790,0.2335703,2160.2,2158.3,1.15831345]
[1770142835096,0.2335703,2160.3,2158.2,12.29370848]
[1770142835301,0.968,2160.6,2158.2,12.28676179]
[1770142835302,0.2335703,2160.5,2158.2,12.28676179]
[1770142835600,0.83852733,2160.5,2158.4,0.00694685]
[1770142835906,1.15915798,2161.3,2158.4,0.00694685]
[1770142835907,11.81353487,2162.1,2159.4,0.00694685]
[1770142836213,0.51839703,2162.2,2159.6,0.00694685]
[1770142836214,0.00694685,2162.0,2159.6,0.00694685]
[1770142836411,0.00694685,2161.9,2159.5,1.15767538]
[1770142836901,0.00694685,2161.8,2159.5,1.15767538]
[1770142837503,0.00694685,2161.8,2159.5,1.16462223]
[1770142837701,0.10934685,2162.1,2159.9,0.00694685]
[1770142837702,0.00694685,2162.1,2159.9,0.00694685]
[1770142837995,0.51839703,2162.2,2159.8,12.28676179]
[1770142838201,0.51839703,2162.2,2159.9,1.15746099]
[1770142838403,0.969,2162.8,2160.3,0.00694685]
[1770142838579,0.969,2162.8,2160.4,0.97694685]
[1770142838779,0.00694685,2162.6,2160.2,12.28676179]
[1770142838982,0.00694685,2162.6,2160.5,0.97]
[1770142839679,0.00694685,2162.6,2160.6,0.97]
[1770142840235,0.00694685,2162.6,2160.6,2.12708565]
[1770142840404,0.00694685,2163.0,2160.6,2.12708565]
[1770142840405,9.86151843,2164.2,2161.1,0.00694685]
[1770142840723,0.00694685,2163.6,2161.2,0.00694685]
[1770142841022,0.00694685,2163.6,2161.3,0.00694685]
[1770142841183,8.19451843,2164.2,2161.7,0.00694685]
[1770142841385,2.17584155,2164.1,2161.8,0.00694685]
[1770142841697,0.00694685,2163.9,2161.8,12.28676179]
[1770142841903,0.00694685,2163.9,2161.8,13.25676179]
[1770142842219,0.00694685,2163.9,2161.8,15.73953658]
[1770142842513,0.00694685,2163.9,2161.9,12.28676179]
[1770142842897,2.17584155,2164.1,2162.0,0.00694685]
[1770142843295,2.08731,2164.6,2162.1,0.97]
[1770142843474,2.08731,2164.6,2162.4,0.00694685]
[1770142843690,2.08731,2164.6,2162.2,12.28676179]
[1770142843691,0.00694685,2164.1,2162.2,12.28676179]
[1770142844213,2.08731,2164.6,2162.5,12.28676179]
[1770142844518,0.00694685,2164.4,2162.5,12.28676179]
[1770142844677,8.18757158,2163.3,2161.3,1.15666943]
[1770142844877,0.81875716,2163.2,2161.3,12.28676179]
[1770142845079,0.1024,2163.7,2161.4,12.28676179]
[1770142845322,0.1024,2163.7,2161.5,13.45028312]
[1770142845488,11.81353487,2164.4,2161.5,13.45028312]
[1770142845489,0.2335703,2164.3,2161.7,0.00694685]
[1770142845685,4.848,2164.4,2161.6,12.28676179]
[1770142845917,0.1024,2164.3,2161.8,12.29370864]
[1770142846078,6.36119716,2164.3,2161.8,13.63317027]
[1770142846416,6.36119716,2164.3,2161.1,12.28676179]
[1770142846417,0.2335703,2163.6,2161.1,12.28676179]
[1770142846592,0.2335703,2163.4,2161.1,12.28676179]
[1770142847402,0.2335703,2163.2,2161.1,12.28676179]
[1770142847609,0.91003007,2163.3,2161.1,12.28676179]
[1770142847610,1.11560352,2163.8,2161.1,13.45355119]
[1770142847778,1.27099195,2163.7,2161.4,0.00694685]
[1770142848107,0.2335703,2163.4,2161.2,1.34535512]
[1770142848406,0.1024,2163.2,2161.1,12.29676179]
[1770142848608,0.1024,2163.4,2161.2,12.29370864]
[1770142848777,0.2335703,2163.2,2161.2,12.28676179]
[1770142848982,0.1024,2163.4,2161.3,0.00694685]
[1770142849178,0.97,2164.0,2161.8,0.00694685]
[1770142849179,1.11560352,2163.9,2161.8,0.00694685]
[1770142849384,0.1024,2164.0,2161.6,12.28676179]
[1770142849705,1.11560352,2164.0,2161.7,0.97]
[1770142850407,2.02981445,2164.0,2161.7,0.97]
[1770142850701,0.91421093,2163.9,2161.7,0.97694685]
[1770142850909,0.1024,2163.7,2161.7,0.97694685]
[1770142851077,0.91421093,2163.6,2161.6,12.28676179]
[1770142851277,0.91432167,2163.5,2161.6,12.28676179]
[1770142851479,0.2335703,2163.6,2161.6,13.25676179]
[1770142851713,0.29190518,2163.7,2161.7,12.79490552]
[1770142851917,0.91435291,2163.6,2161.7,12.79490552]
[1770142852119,0.29190518,2163.7,2161.7,12.79490552]
[1770142852289,0.2335703,2163.5,2161.7,12.79490552]
[1770142852618,0.2335703,2163.6,2161.7,12.79490552]
[1770142852980,1.11560352,2164.0,2162.0,0.00694685]
[1770142853215,1.11560352,2164.0,2161.6,5.59599076]
[1770142853216,0.84442007,2161.4,2159.0,0.00694685]
[1770142853417,0.3359703,2161.1,2158.8,12.79490552]
[1770142853637,0.2335703,2160.5,2158.8,12.79490552]
[1770142853838,0.2335703,2160.3,2158.8,12.79490552]
[1770142854137,0.2335703,2160.3,2158.7,0.001]
[1770142854138,0.2335703,2160.1,2158.7,0.001]
[1770142854287,0.2335703,2160.2,2158.7,0.001]
[1770142855294,5.0815703,2160.2,2158.7,0.001]
[1770142855489,0.2335703,2160.2,2158.7,0.001]
[1770142857194,0.2335703,2160.4,2158.7,0.001]
[1770142857424,0.3359703,2160.5,2158.7,0.001]
[1770142857631,2.3882423,2160.9,2158.7,0.001]
[1770142857829,2.71552521,2160.8,2158.7,0.001]
[1770142857996,1.80363191,2160.8,2158.7,0.001]
[1770142858196,1.14598628,2160.7,2158.7,12.56533457]
[1770142858418,0.2335703,2160.7,2158.7,12.56533457]
[1770142858651,0.497858,2160.7,2158.7,12.56533457]
[1770142858861,0.2642877,2160.7,2158.7,12.57228142]
[1770142859030,1.52200726,2161.2,2159.0,12.56433457]
[1770142859031,1.14142307,2161.2,2159.0,12.56433457]
[1770142859354,0.1024,2161.1,2159.2,12.56433457]
[1770142859555,1.14142307,2161.4,2159.2,12.57128142]
[1770142859757,0.1024,2161.2,2159.2,12.56433457]
[1770142860055,0.36874303,2161.3,2159.4,12.57128142]
[1770142860056,0.26634303,2161.3,2159.4,12.57128142]
[1770142860357,1.14142307,2161.8,2159.9,12.56433457]
[1770142860670,1.14142307,2161.8,2159.2,0.00694685]
[1770142860671,1.24382307,2161.4,2159.2,12.56433457]
[1770142860875,0.1024,2161.2,2159.2,12.56433457]
[1770142861021,0.60567478,2161.3,2159.4,12.56433457]
[1770142861220,3.2043286,2161.6,2159.5,13.72198248]
[1770142861221,0.10934685,2161.6,2159.5,13.72198248]
[1770142861424,0.91459301,2161.5,2159.6,1.15761538]
[1770142861719,1.14142307,2162.4,2160.4,12.56433457]
[1770142861914,0.91511861,2162.3,2160.4,12.56433457]
[1770142862145,1.14142307,2162.5,2160.4,12.57128142]
[1770142862457,1.14142307,2162.5,2160.5,0.00694685]
[1770142862639,1.27383774,2162.4,2160.5,12.57128142]
[1770142862952,2.11142307,2162.7,2160.5,12.56433457]
[1770142863246,0.91673536,2162.6,2160.5,12.56433457]
[1770142863461,0.91673536,2162.5,2160.7,12.56433457]
[1770142863663,1.14142307,2163.0,2161.4,0.00694685]
[1770142863960,0.0011,2163.6,2162.4,0.00694685]
[1770142864139,0.0011,2163.6,2161.9,12.56433457]
[1770142864343,0.91865519,2163.5,2161.9,12.56433457]
[1770142864574,0.91865519,2163.4,2161.9,12.56433457]
[1770142864729,0.91865519,2163.3,2161.3,13.7210282]
[1770142864933,0.91863688,2163.2,2161.3,12.56433457]
[1770142865147,1.4078761,2163.5,2161.5,13.72092483]
[1770142865361,0.2335703,2163.3,2161.5,12.56433457]
[1770142865564,0.91920296,2163.2,2161.5,12.56433457]
[1770142865736,0.91918361,2163.1,2161.5,12.56433457]
[1770142865934,1.37499337,2163.3,2161.5,12.56433457]
[1770142866141,0.26645303,2163.5,2161.9,13.72765828]
[1770142866341,0.0011,2163.6,2161.9,12.56433457]
[1770142866540,0.91910573,2163.5,2161.9,12.56433457]
[1770142866758,0.0011,2163.6,2161.9,12.56433457]
[1770142867036,1.14252307,2163.6,2161.9,12.56433457]
[1770142867243,0.0011,2163.6,2161.9,12.56433457]
[1770142867676,0.0011,2163.6,2162.3,12.57128142]
[1770142867879,0.0011,2163.6,2162.3,12.56433457]
[1770142868368,0.0011,2163.6,2162.3,13.72050298]
[1770142868793,0.0011,2163.6,2162.5,12.56433457]
[1770142869544,0.0011,2163.6,2162.5,13.53433457]
[1770142869739,0.0011,2163.6,2162.0,0.00694685]
[1770142869740,11.81953796,2163.5,2161.9,0.00694685]
[1770142870058,11.81953796,2163.5,2157.9,4.63381904]
[1770142870059,0.24082586,2160.1,2158.9,12.56433457]
[1770142870258,0.11400904,2160.1,2158.9,12.56433457]
[1770142870661,0.2335703,2160.0,2158.9,12.56433457]
[1770142870872,0.2335703,2160.0,2158.6,0.001]
[1770142870873,0.94686732,2160.0,2158.6,0.001]
[1770142871078,1.14529369,2160.0,2158.6,0.001]
[1770142871295,0.24045964,2159.9,2158.6,0.001]
[1770142871767,0.2335703,2160.0,2158.6,0.001]
[1770142872349,0.11400904,2160.1,2158.6,0.001]
[1770142872645,0.2335703,2160.0,2158.6,0.001]
[1770142873371,1.25930273,2160.1,2158.6,0.001]
[1770142873372,0.11400904,2160.1,2158.6,0.001]
[1770142873678,0.2335703,2160.0,2158.6,0.001]
[1770142874067,1.37886399,2160.0,2158.6,0.001]
[1770142874247,0.30199313,2159.9,2158.6,0.001]
[1770142874760,0.2335703,2160.0,2158.6,0.001]
[1770142875076,0.11400904,2160.1,2158.6,0.001]
[1770142875603,0.56456645,2160.0,2158.2,12.56433457]
[1770142875888,1.14529369,2160.7,2158.7,12.57128142]
[1770142876195,1.96405085,2160.9,2158.9,0.00694685]
[1770142876350,1.96405085,2160.9,2158.8,12.57128142]
[1770142876351,0.2335703,2160.8,2158.8,12.57128142]
[1770142877062,1.37886399,2160.9,2158.8,12.56433457]
[1770142877262,0.2335703,2160.7,2158.8,12.56433457]
[1770142877467,7.70257425,2161.2,2158.8,12.56433457]
[1770142877468,1.14529369,2161.5,2159.6,0.00694685]
[1770142877784,1.14529369,2162.0,2160.0,12.56433457]
[1770142877975,1.14529369,2161.9,2160.0,12.56433457]
[1770142878279,1.14529369,2162.0,2160.0,12.56433457]
[1770142878489,0.26723519,2161.9,2160.0,12.56433457]
[1770142878703,1.41252888,2161.9,2160.0,12.56433457]
[1770142878864,1.41252888,2161.9,2160.5,12.56433457]
[1770142878865,0.26723519,2161.9,2160.5,12.56433457]
[1770142879065,1.14529369,2162.3,2160.5,12.56433457]
[1770142879281,0.91402108,2162.2,2160.5,12.56433457]
[1770142879485,1.14529369,2162.4,2160.5,13.53533457]
[1770142879684,1.14529369,2163.0,2161.2,12.57128142]
[1770142879885,2.29058738,2163.3,2161.2,12.57128142]
[1770142879886,1.14529369,2163.3,2161.2,12.56433457]
[1770142880095,2.29252335,2163.2,2161.2,12.56433457]
[1770142880293,0.91449391,2163.1,2161.2,12.56433457]
[1770142880510,0.91449391,2163.1,2161.2,13.72106506]
[1770142880798,0.23273575,2163.2,2161.4,12.86525784]
[1770142881003,0.91543144,2163.1,2161.4,12.85831099]
[1770142881295,0.0011,2163.3,2161.9,12.85831099]
[1770142882195,0.0011,2163.3,2161.5,0.00694685]
[1770142882196,0.94347192,2160.5,2158.8,0.001]
[1770142882361,0.00694685,2159.9,2158.9,12.0819944]
[1770142882565,0.73737225,2159.8,2158.9,12.0819944]
[1770142882883,1.52443888,2160.3,2158.8,0.001]
[1770142882884,1.37677918,2159.7,2158.8,0.001]
[1770142883199,0.2335703,2159.5,2158.8,0.001]
[1770142883398,2.28683006,2160.0,2158.8,0.001]
[1770142883399,1.14320888,2160.0,2158.8,0.001]
[1770142883699,0.2335703,2159.8,2158.8,0.001]
[1770142883865,0.2335703,2160.0,2158.8,12.85931099]
[1770142884197,0.2335703,2159.8,2158.8,12.85931099]
[1770142884404,0.9141517,2159.7,2158.8,12.85931099]
[1770142884564,0.2335703,2159.8,2158.8,12.30931099]
[1770142884766,0.68432862,2159.6,2158.2,12.85831099]
[1770142884965,0.91401091,2159.7,2158.2,12.85831099]
[1770142884966,0.91447399,2159.5,2158.2,12.85831099]
[1770142885200,0.2335703,2159.6,2158.2,12.85831099]
[1770142885495,1.14320888,2159.9,2158.2,12.85831099]
[1770142885694,0.68432862,2160.1,2158.9,12.85831099]
[1770142885862,1.14320888,2160.9,2159.2,12.85831099]
[1770142886272,0.91532059,2160.8,2159.2,12.85831099]
[1770142886465,0.91532059,2160.7,2159.2,12.85831099]
[1770142886695,0.91532059,2160.6,2159.2,12.85831099]
[1770142886880,0.91532059,2160.5,2159.2,12.85831099]
[1770142887085,1.14320888,2160.7,2159.2,12.85831099]
[1770142887291,1.52443888,2160.9,2156.2,5.32497916]
[1770142887292,0.50667156,2159.0,2156.2,5.32497916]
[1770142887510,0.50667156,2159.0,2154.6,0.00346]
[1770142887511,1.87957297,2159.1,2155.9,12.6]
[1770142887512,0.2335703,2156.8,2155.9,12.6]
[1770142887668,0.2335703,2156.8,2155.9,12.3915545]
[1770142887978,0.2335703,2156.8,2154.5,0.17529147]
[1770142887979,0.2408262,2157.5,2156.3,12.85831099]
[1770142888299,0.2408262,2157.5,2155.7,0.00694814]
[1770142888300,0.2408262,2157.5,2156.5,12.85831099]
[1770142888489,0.2408262,2157.5,2156.5,11.54751663]
[1770142888690,0.2408262,2157.5,2156.5,11.11239485]
[1770142889073,0.2408262,2157.5,2155.6,12.85831099]
[1770142889634,1.14320888,2157.4,2155.6,12.85831099]
[1770142889827,0.91118795,2157.3,2155.6,12.85831099]
[1770142890099,0.2335703,2157.2,2155.6,12.85831099]
[1770142890301,0.2408262,2157.5,2156.3,12.85831099]
[1770142890508,1.38183333,2158.9,2156.9,12.85831099]
[1770142890668,0.23862445,2158.9,2157.0,0.00695587]
[1770142890869,0.91076042,2158.8,2157.1,11.75831099]
[1770142891079,2.49543888,2159.2,2157.1,11.75831099]
[1770142891080,2.11420888,2159.2,2157.1,11.75831099]
[1770142891284,5.79829737,2159.8,2157.7,12.85831099]
[1770142891485,0.91097526,2159.7,2157.7,12.85831099]
[1770142891703,4.0137793,2159.8,2157.7,12.85831099]
[1770142891903,2.45487167,2159.7,2157.7,12.85831099]
[1770142892071,0.91028486,2159.6,2157.7,12.85831099]
[1770142892268,4.0137793,2159.8,2158.4,12.85831099]
[1770142893593,4.0137793,2159.8,2157.9,0.971]
[1770142893594,1.14320888,2160.7,2158.5,12.85831099]
[1770142893780,1.14320888,2160.5,2158.5,12.85831099]
[1770142893981,0.91124362,2160.4,2158.5,12.85831099]
[1770142894302,1.14320888,2161.9,2160.2,12.85831099]
[1770142894507,1.14320888,2161.9,2157.2,10.681]
[1770142894508,6.26698851,2161.7,2157.2,10.681]
[1770142894679,6.26698851,2161.7,2155.9,0.00346]
[1770142894680,0.00695587,2157.9,2155.9,12.85831099]
[1770142894878,0.00695587,2157.9,2155.5,0.00695587]
[1770142894879,0.24223225,2157.4,2155.4,12.85831099]
[1770142895211,0.24223225,2157.4,2154.5,0.17529147]
[1770142895212,0.24223225,2157.4,2155.7,12.85831099]
[1770142895934,0.24223225,2157.4,2155.7,14.01802081]
[1770142896104,0.24223225,2157.4,2155.7,12.85831099]
[1770142896408,1.57792555,2158.3,2156.2,12.85831099]
[1770142896605,1.57792555,2158.1,2156.2,12.85831099]
[1770142896790,0.31739861,2158.0,2156.2,12.85831099]
[1770142896992,2.48921078,2157.9,2156.2,12.85831099]
[1770142897170,1.24152032,2158.1,2155.2,0.24231235]
[1770142897370,1.24152032,2158.1,2154.3,0.00695603]
[1770142897371,1.03944539,2155.5,2153.6,12.85831099]
[1770142897583,8.21151265,2156.1,2153.7,12.85831099]
[1770142897584,0.1024,2155.8,2153.7,12.85831099]
[1770142897807,0.1024,2155.8,2152.2,0.24938362]
[1770142897808,1.13912032,2155.9,2150.1,12.85831099]
[1770142897809,8.21151265,2153.8,2150.1,12.85831099]
[1770142898014,8.21151265,2153.8,2148.2,0.00695603]
[1770142898015,0.24267205,2151.3,2150.0,1.0]
[1770142898171,0.24296445,2150.4,2148.0,0.0227]
[1770142898506,0.24296445,2150.4,2148.0,12.88101099]
[1770142898507,1.83150391,2150.3,2148.0,12.88101099]
[1770142898713,8.21151265,2149.9,2148.0,0.0227]
[1770142898900,0.971,2150.3,2146.0,5.0]
[1770142898901,8.21151265,2149.3,2146.0,5.0]
[1770142899086,8.21151265,2148.7,2146.0,5.0]
[1770142899285,8.21151265,2148.7,2144.2,1.06510141]
[1770142899286,0.11079916,2146.4,2144.2,1.06510141]
[1770142899502,0.11079916,2146.4,2142.6,1.39887856]
[1770142899503,0.8448018,2145.4,2143.0,13.0]
[1770142899805,1.671,2147.1,2142.6,13.0]
[1770142899806,1.24744832,2145.9,2142.6,13.0]
[1770142899991,0.972,2146.9,2143.2,13.0]
[1770142900193,8.21151265,2146.9,2143.7,13.0]
[1770142900394,8.21151265,2146.9,2143.1,0.00699284]
[1770142900395,8.49374146,2147.4,2144.4,13.0]
[1770142900582,8.49374146,2147.4,2144.6,13.0]
[1770142900583,8.21151265,2147.4,2144.6,13.0]
[1770142900917,0.81187047,2147.3,2144.6,13.0]
[1770142901123,0.81187047,2147.3,2144.5,12.85831099]
[1770142901410,0.81187047,2147.3,2140.3,100.30728255]
[1770142901411,8.21151265,2146.0,2142.7,0.00699284]
[1770142901713,0.82115126,2145.9,2143.5,0.00699284]
[1770142902020,0.1024,2143.9,2140.2,12.85831099]
[1770142902221,0.1024,2143.9,2139.3,0.00699284]
[1770142902222,8.21151265,2142.7,2139.3,0.00699284]
[1770142902381,0.973,2143.8,2140.9,12.85831099]
[1770142902382,0.01398568,2143.5,2140.9,12.85831099]
[1770142902716,0.01398568,2143.5,2140.9,14.02604418]
[1770142902900,2.34351094,2145.6,2141.8,12.85831099]
[1770142902901,8.53388018,2144.8,2141.8,12.85831099]
[1770142903206,8.53388018,2144.8,2141.6,0.00699855]
[1770142903207,0.39933412,2143.4,2141.6,0.00699855]
[1770142903452,0.85338802,2144.7,2141.6,12.85831099]
[1770142903616,0.974,2146.4,2142.5,12.85831099]
[1770142903831,0.974,2146.4,2142.4,8.21151265]
[1770142903832,0.85338802,2145.5,2143.2,21.06982364]
[1770142904112,8.21151265,2147.0,2143.3,12.85831099]
[1770142904290,1.87782413,2147.3,2141.6,1.17434634]
[1770142904291,0.71355464,2147.3,2143.8,12.85831099]
[1770142904491,0.71355464,2147.3,2141.6,1.16734779]
[1770142904492,0.71355464,2147.3,2144.2,12.85831099]
[1770142905127,0.71355464,2147.3,2142.5,0.00699855]
[1770142905128,0.71355464,2147.3,2143.3,12.85831099]
[1770142905301,0.71355464,2147.3,2143.0,0.974]
[1770142905302,8.21151265,2146.7,2143.5,12.85831099]
[1770142905488,1.8778087,2147.3,2144.2,12.85831099]
[1770142905489,0.82115126,2146.6,2144.2,12.85831099]
[1770142905697,0.71355464,2147.3,2144.2,12.85831099]
[1770142905889,0.71355464,2147.3,2144.8,12.85831099]
[1770142906083,0.71355464,2147.3,2145.0,0.1024]
[1770142906396,0.71355464,2147.3,2145.5,12.85831099]
[1770142906720,0.32967243,2149.9,2146.6,8.20801338]
[1770142906917,0.32967243,2149.9,2146.8,0.00699855]
[1770142907230,8.21151265,2149.6,2146.8,12.85831099]
[1770142907528,0.82115126,2149.5,2146.8,12.85831099]
[1770142907758,0.82115126,2149.5,2147.3,12.86530954]
[1770142907902,8.21151265,2151.5,2148.2,0.00699855]
[1770142908243,0.31748481,2151.7,2149.0,12.86530954]
[1770142908527,0.31748481,2151.7,2149.0,12.85831099]
[1770142908699,8.21151265,2151.5,2149.0,12.85831099]
[1770142908898,8.21151265,2151.6,2149.0,12.85831099]
[1770142909335,8.21151265,2151.6,2148.2,0.00699855]
[1770142909336,8.21151265,2150.2,2147.0,12.85831099]
[1770142909533,0.1024,2150.0,2147.0,12.85831099]
[1770142909733,8.21151265,2150.1,2146.0,0.975]
[1770142909920,8.21151265,2150.1,2146.2,0.00699855]
[1770142909921,0.1024,2149.3,2146.2,0.00699855]
[1770142910109,0.1024,2149.3,2146.3,12.85831099]
[1770142910429,0.1024,2149.3,2145.5,12.87242489]
[1770142910430,9.37344166,2151.6,2148.1,12.72427331]
[1770142910633,8.21151265,2151.6,2148.1,13.69927331]
[1770142910832,9.37344184,2151.6,2148.3,0.00699855]
[1770142911128,9.37344184,2151.6,2147.7,0.00699855]
[1770142911129,0.43191728,2151.5,2147.5,12.72427331]
[1770142911328,8.21151265,2150.7,2147.5,12.72427331]
[1770142911540,0.1024,2150.0,2146.6,13.70627186]
[1770142911829,8.21151265,2150.1,2146.6,12.72427331]
[1770142912003,0.1024,2149.2,2146.6,12.72427331]
[1770142912201,8.21151265,2150.7,2147.0,1.16437138]
[1770142912433,0.975,2151.5,2146.9,0.00699855]
[1770142912434,0.11275558,2151.8,2148.1,12.73127186]
[1770142912633,8.64342993,2151.5,2148.1,12.72427331]
[1770142912801,1.47935984,2151.7,2148.1,12.72427331]
[1770142913002,8.21151265,2151.4,2148.1,12.72427331]
[1770142913201,0.43191728,2151.6,2148.1,12.72427331]
[1770142913403,0.31748481,2151.7,2148.1,12.72427331]
[1770142913404,9.69088645,2151.7,2148.1,12.72427331]
[1770142913606,21.0580148,2151.1,2147.2,12.72427331]
[1770142913813,21.0580148,2151.1,2147.4,0.00699855]
[1770142913814,0.1024,2150.2,2147.4,0.00699855]
[1770142914105,0.1024,2150.2,2147.2,12.72427331]
[1770142914443,0.1024,2149.4,2146.3,12.35777549]
[1770142914769,0.1024,2149.4,2145.8,0.00699855]
[1770142914770,0.2335703,2148.5,2145.4,12.35777549]
[1770142914933,0.1024,2148.6,2144.3,0.00699855]
[1770142914934,0.1024,2148.0,2144.6,8.21151265]
[1770142915123,0.1024,2148.0,2144.7,2.06462722]
[1770142915124,0.2335703,2147.8,2144.7,2.06462722]
[1770142915321,0.2335703,2147.8,2144.8,0.00699855]
[1770142915560,0.1024,2147.1,2144.6,12.35777549]
[1770142915860,0.2335703,2147.2,2143.7,12.36477404]
[1770142915861,0.43191728,2147.2,2143.7,12.36477404]
[1770142916025,8.21151265,2148.0,2144.7,1.16563973]
[1770142916345,11.77434757,2148.7,2145.3,12.36477404]
[1770142916346,8.21151265,2148.7,2145.3,12.36477404]
[1770142916525,8.21151265,2149.9,2146.3,12.59834434]
[1770142916729,8.21151265,2150.5,2147.6,0.00699855]
[1770142916975,11.77434757,2151.5,2148.0,0.00699855]
[1770142917127,11.77434757,2151.5,2147.8,12.35777549]
[1770142917128,8.21151265,2151.1,2147.8,12.35777549]
[1770142917460,8.21151265,2151.1,2147.3,12.35777549]
[1770142917461,9.80565774,2151.1,2147.3,12.35777549]
[1770142917657,4.64877444,2151.2,2147.4,0.00699855]
[1770142917658,8.21151265,2150.5,2147.4,0.00699855]
[1770142917834,8.21151265,2149.9,2147.3,12.35777549]
[1770142918035,0.1024,2150.4,2147.3,12.35777549]
[1770142918355,8.21151265,2150.7,2147.9,0.00699855]
[1770142918555,8.21151265,2151.3,2148.4,0.00699855]
[1770142918873,8.21151265,2151.3,2148.0,0.98299855]
[1770142918874,8.80626443,2151.3,2147.9,12.35777549]
[1770142919072,1.09150587,2151.2,2147.9,12.35777549]
[1770142919273,8.21151265,2150.6,2147.9,12.35777549]
[1770142919428,0.59475178,2151.0,2147.9,12.35777549]
[1770142919770,2.95212691,2151.7,2148.1,0.00699855]
[1770142919942,8.21151265,2151.4,2147.9,13.60125144]
[1770142920257,8.21151265,2150.8,2147.9,12.35777549]
[1770142920456,8.21151265,2150.8,2147.5,12.36477404]
[1770142920457,0.2335703,2150.7,2147.5,12.36477404]
[1770142920685,0.2335703,2150.7,2147.1,8.2185112]
[1770142920686,0.2335703,2150.1,2146.6,12.35777549]
[1770142920833,8.21151265,2150.2,2147.1,0.00699855]
[1770142921045,0.1024,2149.9,2147.6,0.00699855]
[1770142921247,0.2335703,2150.6,2147.6,0.00699855]
[1770142921248,8.21151265,2151.4,2148.0,12.36477404]
[1770142921441,0.31748481,2151.7,2148.0,12.36477404]
[1770142921442,0.31748481,2151.7,2149.0,12.36477404]
[1770142921750,0.11275558,2151.8,2149.7,8.2185112]
[1770142921949,0.11275558,2151.8,2149.6,12.36477404]
[1770142921950,0.11275558,2151.8,2149.6,12.35777549]
[1770142922150,0.0011,2151.3,2148.9,0.1024]
[1770142922351,0.0011,2151.3,2148.8,12.35777549]
[1770142922763,0.0011,2151.3,2148.1,0.00699855]
[1770142922764,0.1024,2150.7,2147.9,12.35777549]
[1770142922945,0.59475178,2150.6,2148.1,0.00699855]
[1770142923145,0.0011,2151.3,2149.2,0.00699855]
[1770142923345,0.59475178,2151.1,2148.8,12.35777549]
[1770142923550,0.0011,2151.3,2149.3,12.59134579]
[1770142923793,0.0011,2151.3,2149.5,12.35777549]
[1770142923988,0.976,2153.4,2149.2,1.1632052]
[1770142923989,8.21151265,2154.3,2150.6,12.69374579]
[1770142924179,8.21151265,2154.9,2151.6,0.00699855]
[1770142924382,0.59475178,2155.2,2152.8,0.00699855]
[1770142924555,0.59475178,2154.8,2153.1,0.00699855]
[1770142924753,0.1220033,2156.2,2152.9,8.4520815]
[1770142924949,0.1220033,2156.2,2152.7,12.35777549]
[1770142925156,8.21151265,2156.0,2153.2,12.35777549]
[1770142925354,0.1220033,2156.2,2153.2,12.35777549]
[1770142925550,0.64823869,2156.2,2153.2,12.35406549]
[1770142925780,0.64823869,2156.2,2152.5,0.00699855]
[1770142925781,0.52623539,2156.1,2152.4,0.00699855]
[1770142925963,8.21151265,2156.3,2152.9,0.00699855]
[1770142926289,0.49434817,2156.5,2153.1,0.00699855]
[1770142926580,0.976,2156.9,2153.2,0.00699855]
[1770142926581,0.52186061,2156.4,2153.2,0.00699855]
[1770142926791,8.21151265,2156.1,2153.0,12.35777549]
[1770142927152,0.99763254,2156.0,2153.0,12.35777549]
[1770142927352,0.1024,2154.7,2151.1,12.35777549]
[1770142927552,2.24141842,2155.4,2151.1,12.35777549]
[1770142927553,0.2335703,2153.9,2151.1,12.35777549]
[1770142927791,0.1024,2154.3,2151.1,12.35777549]
[1770142927792,1.5758365,2154.6,2151.1,9.60613273]
[1770142927987,0.2335703,2155.4,2152.8,0.00699855]
[1770142928152,0.43191728,2155.9,2152.8,0.00699855]
[1770142928481,0.52186061,2155.8,2152.7,0.00699855]
[1770142928681,0.1024,2155.3,2152.3,12.35777549]
[1770142928888,0.1024,2155.3,2151.4,12.35777549]
[1770142928889,0.3359703,2154.5,2151.4,12.35777549]
[1770142929091,8.21151265,2155.6,2152.2,0.00699855]
[1770142929288,0.1024,2155.6,2152.2,0.00699855]
[1770142929583,0.52186061,2155.6,2153.3,0.00699855]
[1770142929752,0.95377789,2156.1,2153.1,12.35777549]
[1770142929958,8.21151265,2156.5,2153.4,0.00699855]
[1770142930164,0.52186061,2156.2,2153.2,0.10939855]
[1770142930364,0.52186061,2156.4,2153.1,12.35777549]
[1770142930554,12.63672293,2156.9,2153.2,0.00699855]
[1770142930555,8.21151265,2156.7,2153.2,0.00699855]
[1770142930755,0.0011,2157.2,2154.7,0.00699855]
[1770142930966,0.0011,2157.2,2154.3,8.21151265]
[1770142930967,0.0011,2157.2,2154.1,12.35777549]
[1770142931167,0.0011,2157.2,2154.6,0.00699855]
[1770142931398,0.0011,2157.2,2154.2,12.35777549]
[1770142931399,8.21261265,2157.2,2154.2,12.35777549]
[1770142932187,8.21261265,2157.2,2154.3,0.2335703]
[1770142932188,0.0011,2157.2,2154.3,0.2335703]
[1770142932391,0.0011,2157.2,2154.5,0.00699855]
[1770142932591,0.43801347,2157.2,2154.9,0.00699855]
[1770142932906,0.43801347,2157.2,2154.1,12.36477404]
[1770142932907,0.1024,2157.0,2154.1,12.36477404]
[1770142933057,0.1024,2157.0,2154.2,1.1604803]
[1770142933257,0.0011,2157.2,2154.3,12.59134579]
[1770142933521,0.0011,2157.2,2155.4,0.00699855]
[1770142933731,0.0011,2157.2,2155.0,0.00699855]
[1770142933732,0.0011,2157.2,2154.4,14.08881764]
[1770142933890,0.0011,2157.2,2154.1,9.37205341]